Workbook

Sheet Liquiditätsplan
A1: Liquiditätsplanung (12 Monate)
A2: Name / Firma: | B2: Beispiel GmbH | E2: Jahr: | F2: 2026 | G2: Währung: | H2: EUR
A3: Hinweis: | B3: Eingaben nur in gelb markierten Feldern. Monate in Zeile 22 überschreibbar.
A5: Beträge in €
B6: Januar | C6: Februar | D6: März | E6: April | F6: Mai | G6: Juni | H6: Juli | I6: August | J6: September | K6: Oktober | L6: November | M6: Dezember | N6: Summe
A7: Übertrag Liquiditäts-Endbestand Vormonat | B7: 15,000.00 € | C7: =B56 -> 14,560.00 € | D7: 20,450.00 € | E7: -13,080.00 € | F7: -22,110.00 € | G7: -27,440.00 € | H7: -29,220.00 € | I7: -34,570.00 € | J7: -39,730.00 € | K7: -44,140.00 € | L7: -50,220.00 € | M7: -53,850.00 €
A9: A) Einzahlungen (brutto)
A10: Forderungen aus Lieferung u. Leistungen | B10: 18,000.00 € | C10: 19,000.00 € | D10: 21,000.00 € | E10: 22,000.00 € | F10: 24,000.00 € | G10: 23,000.00 € | H10: 25,000.00 € | I10: 24,500.00 € | J10: 26,000.00 € | K10: 27,000.00 € | L10: 28,000.00 € | M10: 30,000.00 € | N10: =SUM(B10:M10) -> 287,500.00 €
A11: Barverkäufe | B11: 2,000.00 € | C11: 2,000.00 € | D11: 2,000.00 € | E11: 2,000.00 € | F11: 2,000.00 € | G11: 2,000.00 € | H11: 2,000.00 € | I11: 2,000.00 € | J11: 2,000.00 € | K11: 2,000.00 € | L11: 2,000.00 € | M11: 2,000.00 € | N11: 24,000.00 €
A12: erwartete Kundenanzahlungen | B12: 1,500.00 € | C12: 1,200.00 € | D12: 1,400.00 € | E12: 1,600.00 € | F12: 2,000.00 € | G12: 1,800.00 € | H12: 1,700.00 € | I12: 1,900.00 € | J12: 2,100.00 € | K12: 2,200.00 € | L12: 2,000.00 € | M12: 2,500.00 € | N12: 21,900.00 €
A13: Eigenkapital-Einlagen | B13: 10,000.00 € | C13: 0.00 € | D13: 0.00 € | E13: 0.00 € | F13: 0.00 € | G13: 0.00 € | H13: 0.00 € | I13: 0.00 € | J13: 0.00 € | K13: 0.00 € | L13: 0.00 € | M13: 0.00 € | N13: 10,000.00 €
A14: Kreditauszahlung | B14: 0.00 € | C14: 20,000.00 € | D14: 0.00 € | E14: 0.00 € | F14: 0.00 € | G14: 0.00 € | H14: 0.00 € | I14: 0.00 € | J14: 0.00 € | K14: 0.00 € | L14: 0.00 € | M14: 0.00 € | N14: 20,000.00 €
A15: Desinvestment und Anlageverkäufe | B15: 0.00 € | C15: 0.00 € | D15: 0.00 € | E15: 0.00 € | F15: 0.00 € | G15: 5,000.00 € | H15: 0.00 € | I15: 0.00 € | J15: 0.00 € | K15: 0.00 € | L15: 0.00 € | M15: 0.00 € | N15: 5,000.00 €
A16: sonstige Einnahmen | B16: 300.00 € | C16: 400.00 € | D16: 350.00 € | E16: 300.00 € | F16: 500.00 € | G16: 450.00 € | H16: 400.00 € | I16: 380.00 € | J16: 420.00 € | K16: 500.00 € | L16: 450.00 € | M16: 600.00 € | N16: 5,050.00 €
A17: Summe Liquiditätszugang | B17: =SUM(B10:B16) -> 31,800.00 € | C17: 42,600.00 € | D17: 24,750.00 € | E17: 25,900.00 € | F17: 28,500.00 € | G17: 32,250.00 € | H17: 29,100.00 € | I17: 28,780.00 € | J17: 30,520.00 € | K17: 31,700.00 € | L17: 32,450.00 € | M17: 35,100.00 € | N17: 373,450.00 €
A19: Rechengröße: vereinnahmte Umsatzsteuer (Mehrwertsteuer) | B19: 3,400.00 € | C19: 3,600.00 € | D19: 3,900.00 € | E19: 4,100.00 € | F19: 4,400.00 € | G19: 4,250.00 € | H19: 4,650.00 € | I19: 4,580.00 € | J19: 4,900.00 € | K19: 5,100.00 € | L19: 5,300.00 € | M19: 5,700.00 € | N19: =SUM(B19:M19) -> 53,880.00 €
A21: B) Auszahlungen für Investitionen
A22: Grundstück/Gebäude/Umbaumaßnahmen | B22: 0.00 € | C22: 0.00 € | D22: 25,000.00 € | E22: 0.00 € | F22: 0.00 € | G22: 0.00 € | H22: 0.00 € | I22: 0.00 € | J22: 0.00 € | K22: 0.00 € | L22: 0.00 € | M22: 0.00 € | N22: =SUM(B22:M22) -> 25,000.00 €
A23: Anschaffung Maschinen/Geräte | B23: 0.00 € | C23: 5,000.00 € | D23: 0.00 € | E23: 0.00 € | F23: 0.00 € | G23: 0.00 € | H23: 0.00 € | I23: 0.00 € | J23: 0.00 € | K23: 0.00 € | L23: 0.00 € | M23: 0.00 € | N23: =SUM(B23:M23) -> 5,000.00 €
A24: Büroausstattung, PCs, Firmenfahrzeug | B24: 1,200.00 € | C24: 800.00 € | D24: 0.00 € | E24: 500.00 € | F24: 0.00 € | G24: 0.00 € | H24: 0.00 € | I24: 0.00 € | J24: 0.00 € | K24: 0.00 € | L24: 0.00 € | M24: 0.00 € | N24: =SUM(B24:M24) -> 2,500.00 €
A25: Summe Investitionsausgaben | B25: =SUM(B22:B24) -> 1,200.00 € | C25: 5,800.00 € | D25: 25,000.00 € | E25: 500.00 € | F25: 0.00 € | G25: 0.00 € | H25: 0.00 € | I25: 0.00 € | J25: 0.00 € | K25: 0.00 € | L25: 0.00 € | M25: 0.00 € | N25: =SUM(B25:M25) -> 32,500.00 €
A27: C) Auszahlungen für betriebliche Kosten
A28: Ware, Material, Roh-/Hilfs-/Betriebsstoffe | B28: 9,000.00 € | C28: 9,500.00 € | D28: 10,000.00 € | E28: 10,200.00 € | F28: 11,000.00 € | G28: 10,800.00 € | H28: 11,200.00 € | I28: 11,000.00 € | J28: 11,500.00 € | K28: 11,800.00 € | L28: 12,000.00 € | M28: 12,500.00 € | N28: =SUM(B28:M28) -> 130,500.00 €
A29: Personalkosten | B29: 9,000.00 € | C29: 9,000.00 € | D29: 9,000.00 € | E29: 9,000.00 € | F29: 9,000.00 € | G29: 9,000.00 € | H29: 9,000.00 € | I29: 9,000.00 € | J29: 9,000.00 € | K29: 9,000.00 € | L29: 9,000.00 € | M29: 9,000.00 € | N29: 108,000.00 €
A30: Fremdleistungen | B30: 2,000.00 € | C30: 1,800.00 € | D30: 2,200.00 € | E30: 2,100.00 € | F30: 2,300.00 € | G30: 2,400.00 € | H30: 2,350.00 € | I30: 2,500.00 € | J30: 2,600.00 € | K30: 2,700.00 € | L30: 2,650.00 € | M30: 2,800.00 € | N30: 28,400.00 €
A31: Miete einschl. Nebenkosten | B31: 2,200.00 € | C31: 2,200.00 € | D31: 2,200.00 € | E31: 2,200.00 € | F31: 2,200.00 € | G31: 2,200.00 € | H31: 2,200.00 € | I31: 2,200.00 € | J31: 2,200.00 € | K31: 2,200.00 € | L31: 2,200.00 € | M31: 2,200.00 € | N31: 26,400.00 €
A32: Leasing Maschinen | B32: 1,000.00 € | C32: 1,000.00 € | D32: 1,000.00 € | E32: 1,000.00 € | F32: 1,000.00 € | G32: 1,000.00 € | H32: 1,000.00 € | I32: 1,000.00 € | J32: 1,000.00 € | K32: 1,000.00 € | L32: 1,000.00 € | M32: 1,000.00 € | N32: 12,000.00 €
A33: Reparaturen, Wartung | B33: 300.00 € | C33: 250.00 € | D33: 400.00 € | E33: 350.00 € | F33: 300.00 € | G33: 450.00 € | H33: 320.00 € | I33: 280.00 € | J33: 300.00 € | K33: 500.00 € | L33: 350.00 € | M33: 400.00 € | N33: 4,200.00 €
A34: KFZ-Kosten: Leasing, Steuern, Versicherung | B34: 800.00 € | C34: 800.00 € | D34: 800.00 € | E34: 800.00 € | F34: 800.00 € | G34: 800.00 € | H34: 800.00 € | I34: 800.00 € | J34: 800.00 € | K34: 800.00 € | L34: 800.00 € | M34: 800.00 € | N34: 9,600.00 €
A35: KFZ-Kosten: Benzin, Instandhaltung, Pflege | B35: 300.00 € | C35: 300.00 € | D35: 300.00 € | E35: 300.00 € | F35: 300.00 € | G35: 300.00 € | H35: 300.00 € | I35: 300.00 € | J35: 300.00 € | K35: 300.00 € | L35: 300.00 € | M35: 300.00 € | N35: 3,600.00 €
A36: Sonstige Reisekosten | B36: 400.00 € | C36: 350.00 € | D36: 450.00 € | E36: 500.00 € | F36: 550.00 € | G36: 600.00 € | H36: 500.00 € | I36: 450.00 € | J36: 500.00 € | K36: 650.00 € | L36: 550.00 € | M36: 700.00 € | N36: 6,200.00 €
A37: Betriebl. Versicherungen / Beiträge | B37: 350.00 € | C37: 0.00 € | D37: 0.00 € | E37: 350.00 € | F37: 0.00 € | G37: 0.00 € | H37: 350.00 € | I37: 0.00 € | J37: 0.00 € | K37: 350.00 € | L37: 0.00 € | M37: 0.00 € | N37: 1,400.00 €
A38: Telefon/Fax/Internet/Handy/Porto | B38: 220.00 € | C38: 220.00 € | D38: 220.00 € | E38: 220.00 € | F38: 220.00 € | G38: 220.00 € | H38: 220.00 € | I38: 220.00 € | J38: 220.00 € | K38: 220.00 € | L38: 220.00 € | M38: 220.00 € | N38: 2,640.00 €
A39: Werbekosten, Internet, Messen, Bewirtung | B39: 500.00 € | C39: 600.00 € | D39: 800.00 € | E39: 700.00 € | F39: 650.00 € | G39: 900.00 € | H39: 750.00 € | I39: 700.00 € | J39: 800.00 € | K39: 850.00 € | L39: 900.00 € | M39: 1,200.00 € | N39: 9,350.00 €
A40: Buchführungs- und Steuerberatungskosten | B40: 450.00 € | C40: 450.00 € | D40: 450.00 € | E40: 450.00 € | F40: 450.00 € | G40: 450.00 € | H40: 450.00 € | I40: 450.00 € | J40: 450.00 € | K40: 450.00 € | L40: 450.00 € | M40: 450.00 € | N40: 5,400.00 €
A41: Rechtsanwalts- und Beratungskosten | B41: 0.00 € | C41: 0.00 € | D41: 500.00 € | E41: 0.00 € | F41: 0.00 € | G41: 0.00 € | H41: 0.00 € | I41: 0.00 € | J41: 0.00 € | K41: 0.00 € | L41: 0.00 € | M41: 0.00 € | N41: 500.00 €
A42: Sonstige Kosten (z.B. Gebühren, Abgaben) | B42: 300.00 € | C42: 300.00 € | D42: 300.00 € | E42: 300.00 € | F42: 300.00 € | G42: 300.00 € | H42: 300.00 € | I42: 300.00 € | J42: 300.00 € | K42: 300.00 € | L42: 300.00 € | M42: 300.00 € | N42: 3,600.00 €
A43: Anzahlungen an Lieferanten | B43: 1,000.00 € | C43: 800.00 € | D43: 1,200.00 € | E43: 900.00 € | F43: 1,100.00 € | G43: 1,000.00 € | H43: 950.00 € | I43: 1,000.00 € | J43: 1,100.00 € | K43: 1,200.00 € | L43: 1,300.00 € | M43: 1,500.00 € | N43: 13,050.00 €
A44: Summe betriebliche Kosten | B44: =B28+B29+B30+B31+B32+B33+B34+B35+B36+B37+B38+B39+B40+B41+B42+B43 -> 27,820.00 € | C44: 27,570.00 € | D44: 29,820.00 € | E44: 29,370.00 € | F44: 30,170.00 € | G44: 30,420.00 € | H44: 30,690.00 € | I44: 30,200.00 € | J44: 31,070.00 € | K44: 32,320.00 € | L44: 32,020.00 € | M44: 33,370.00 € | N44: 364,840.00 €
A46: D) Mittelabfluß aus Finanzierungen
A47: Zinsen für Darlehen und Kontokorrentkredite | B47: 220.00 € | C47: 240.00 € | D47: 260.00 € | E47: 260.00 € | F47: 260.00 € | G47: 260.00 € | H47: 260.00 € | I47: 260.00 € | J47: 260.00 € | K47: 260.00 € | L47: 260.00 € | M47: 260.00 € | N47: =SUM(B47:M47) -> 3,060.00 €
A48: Tilgungsraten Darlehen | B48: 800.00 € | C48: 800.00 € | D48: 800.00 € | E48: 800.00 € | F48: 800.00 € | G48: 800.00 € | H48: 800.00 € | I48: 800.00 € | J48: 800.00 € | K48: 800.00 € | L48: 800.00 € | M48: 800.00 € | N48: =SUM(B48:M48) -> 9,600.00 €
A49: E) Betriebliche Steuern
A50: Umsatzsteuer (Zahllast oder Erstattung) | B50: 1,200.00 € | C50: 1,300.00 € | D50: 1,400.00 € | E50: 1,500.00 € | F50: 1,600.00 € | G50: 1,550.00 € | H50: 1,700.00 € | I50: 1,680.00 € | J50: 1,800.00 € | K50: 1,900.00 € | L50: 2,000.00 € | M50: 2,200.00 € | N50: =SUM(B50:M50) -> 19,830.00 €
A51: Steuern (Voraus-, Nachzahlungen für GewSt, KöSt) | B51: 0.00 € | C51: 0.00 € | D51: 0.00 € | E51: 1,500.00 € | F51: 0.00 € | G51: 0.00 € | H51: 0.00 € | I51: 0.00 € | J51: 0.00 € | K51: 1,500.00 € | L51: 0.00 € | M51: 0.00 € | N51: 3,000.00 €
A52: Kapitalentnahmen | B52: 1,000.00 € | C52: 1,000.00 € | D52: 1,000.00 € | E52: 1,000.00 € | F52: 1,000.00 € | G52: 1,000.00 € | H52: 1,000.00 € | I52: 1,000.00 € | J52: 1,000.00 € | K52: 1,000.00 € | L52: 1,000.00 € | M52: 1,000.00 € | N52: 12,000.00 €
A53: Summe Liquiditätsabgang | B53: =B25+B44+B47+B48+B50+B51+B52 -> 32,240.00 € | C53: 36,710.00 € | D53: 58,280.00 € | E53: 34,930.00 € | F53: 33,830.00 € | G53: 34,030.00 € | H53: 34,450.00 € | I53: 33,940.00 € | J53: 34,930.00 € | K53: 37,780.00 € | L53: 36,080.00 € | M53: 37,630.00 € | N53: 444,830.00 €
A54: Rechengröße: gezahlte Umsatzsteuer (Vorsteuer) | B54: 900.00 € | C54: 950.00 € | D54: 1,000.00 € | E54: 1,050.00 € | F54: 1,100.00 € | G54: 1,080.00 € | H54: 1,150.00 € | I54: 1,130.00 € | J54: 1,200.00 € | K54: 1,250.00 € | L54: 1,300.00 € | M54: 1,400.00 € | N54: 13,510.00 €
A55: +/- Mittelfluß an Konzernunternehmen | B55: 0.00 € | C55: 0.00 € | D55: 0.00 € | E55: 0.00 € | F55: 0.00 € | G55: 0.00 € | H55: 0.00 € | I55: 0.00 € | J55: 0.00 € | K55: 0.00 € | L55: 0.00 € | M55: 0.00 € | N55: 0.00 €
A56: Liquiditätssaldo (Endbestand Monat) | B56: =B7+B17-B53 -> 14,560.00 € | C56: 20,450.00 € | D56: -13,080.00 € | E56: -22,110.00 € | F56: -27,440.00 € | G56: -29,220.00 € | H56: -34,570.00 € | I56: -39,730.00 € | J56: -44,140.00 € | K56: -50,220.00 € | L56: -53,850.00 € | M56: -56,380.00 € | N56: -335,730.00 €
A61: Kontokorrent / Linien
A62: Bank 1 | B62: 0.00 € | C62: 0.00 € | D62: 8,000.00 € | E62: 12,000.00 € | F62: 9,000.00 € | G62: 7,000.00 € | H62: 5,000.00 € | I62: 4,000.00 € | J62: 3,000.00 € | K62: 2,000.00 € | L62: 1,000.00 € | M62: 0.00 € | N62: =SUM(B62:M62) -> 51,000.00 €
A63: Bank 2 | B63: 0.00 € | C63: 0.00 € | D63: 0.00 € | E63: 0.00 € | F63: 0.00 € | G63: 0.00 € | H63: 0.00 € | I63: 0.00 € | J63: 0.00 € | K63: 0.00 € | L63: 0.00 € | M63: 0.00 € | N63: 0.00 €
A64: Bank 3 | B64: 0.00 € | C64: 0.00 € | D64: 0.00 € | E64: 0.00 € | F64: 0.00 € | G64: 0.00 € | H64: 0.00 € | I64: 0.00 € | J64: 0.00 € | K64: 0.00 € | L64: 0.00 € | M64: 0.00 € | N64: 0.00 €
A65: Bank 4 | B65: 0.00 € | C65: 0.00 € | D65: 0.00 € | E65: 0.00 € | F65: 0.00 € | G65: 0.00 € | H65: 0.00 € | I65: 0.00 € | J65: 0.00 € | K65: 0.00 € | L65: 0.00 € | M65: 0.00 € | N65: 0.00 €
A66: Bank 5 | B66: 0.00 € | C66: 0.00 € | D66: 0.00 € | E66: 0.00 € | F66: 0.00 € | G66: 0.00 € | H66: 0.00 € | I66: 0.00 € | J66: 0.00 € | K66: 0.00 € | L66: 0.00 € | M66: 0.00 € | N66: 0.00 €
A67: Bank 6 | B67: 0.00 € | C67: 0.00 € | D67: 0.00 € | E67: 0.00 € | F67: 0.00 € | G67: 0.00 € | H67: 0.00 € | I67: 0.00 € | J67: 0.00 € | K67: 0.00 € | L67: 0.00 € | M67: 0.00 € | N67: 0.00 €
A68: Summe KK Stände (Inanspruchnahmen) | B68: =SUM(B62:B67) -> 0.00 € | C68: 0.00 € | D68: 8,000.00 € | E68: 12,000.00 € | F68: 9,000.00 € | G68: 7,000.00 € | H68: 5,000.00 € | I68: 4,000.00 € | J68: 3,000.00 € | K68: 2,000.00 € | L68: 1,000.00 € | M68: 0.00 € | N68: 51,000.00 €
A70: Linien zzgl. Festgelder | B70: 30,000.00 € | C70: 30,000.00 € | D70: 30,000.00 € | E70: 30,000.00 € | F70: 30,000.00 € | G70: 30,000.00 € | H70: 30,000.00 € | I70: 30,000.00 € | J70: 30,000.00 € | K70: 30,000.00 € | L70: 30,000.00 € | M70: 30,000.00 € | N70: =SUM(B70:M70) -> 360,000.00 €
A72: Freie Linien | B72: =B70-B68 -> 30,000.00 € | C72: 30,000.00 € | D72: 22,000.00 € | E72: 18,000.00 € | F72: 21,000.00 € | G72: 23,000.00 € | H72: 25,000.00 € | I72: 26,000.00 € | J72: 27,000.00 € | K72: 28,000.00 € | L72: 29,000.00 € | M72: 30,000.00 €
